bitfinex-derivatives/quotes_BTCF0:USTF0_20250129
["timestamp","ask_amount","ask_price","bid_price","bid_amount"]
[1738117845207,0.69807625,101930.0,101920.0,0.138424]
[1738117846098,0.69807625,101930.0,101920.0,0.23099996]
[1738117846506,0.69807625,101930.0,101920.0,0.1991159]
[1738117847821,0.31560891,101930.0,101920.0,0.6206078]
[1738117847998,0.31560891,101930.0,101920.0,0.7795078]
[1738117847999,0.17672645,101930.0,101920.0,0.7795078]
[1738117849002,0.17672645,101930.0,101920.0,0.78951277]
[1738117849304,0.17672645,101930.0,101920.0,0.85020467]
[1738117850616,0.137387,101950.0,101940.0,0.137397]
[1738117850812,0.137387,101950.0,101940.0,0.3222463]
[1738117851115,0.70419331,101960.0,101940.0,0.3222463]
[1738117851416,0.70419331,101960.0,101950.0,0.09242465]
[1738117851713,0.70434016,101960.0,101950.0,0.09242465]
[1738117852109,0.70434016,101960.0,101950.0,0.22980765]
[1738117852911,0.49831985,101960.0,101950.0,0.22980765]
[1738117853614,0.13751985,101960.0,101950.0,0.22980765]
[1738117853916,0.50331985,101960.0,101950.0,0.23080765]
[1738117855708,0.14251985,101960.0,101950.0,0.23080765]
[1738117856113,0.50331985,101960.0,101950.0,0.23080765]
[1738117856619,0.65014049,101960.0,101950.0,0.23080765]
[1738117859010,0.28934049,101960.0,101950.0,0.23080765]
[1738117859616,0.65014049,101960.0,101950.0,0.23080765]
[1738117861024,0.28934049,101960.0,101950.0,0.23080765]
[1738117861606,0.14251985,101960.0,101950.0,0.23080765]
[1738117863418,0.00514685,101960.0,101950.0,0.59160765]
[1738117865623,0.12253523,101960.0,101950.0,0.59160765]
[1738117867723,0.11753523,101960.0,101950.0,0.59460765]
[1738117871220,0.00014685,101960.0,101950.0,0.59460765]
[1738117876620,0.00014685,101960.0,101950.0,0.62343768]
[1738117877822,0.00014685,101960.0,101950.0,0.98423768]
[1738117883222,0.08788656,101970.0,101950.0,0.90748202]
[1738117883524,0.44147209,102020.0,102010.0,0.137303]
[1738117883720,0.54257209,102020.0,102010.0,0.55873034]
[1738117884630,1.04066109,102020.0,102010.0,0.09231318]
[1738117884821,0.67986109,102020.0,102010.0,0.09231318]
[1738117885018,0.67986109,102020.0,102010.0,0.09631318]
[1738117886824,0.67986109,102020.0,102010.0,0.23361618]
[1738117887127,1.04066109,102020.0,102010.0,0.23361618]
[1738117887731,0.67986109,102020.0,102010.0,0.23361618]
[1738117888027,0.238389,102020.0,102010.0,0.23361618]
[1738117889023,0.599189,102020.0,102010.0,0.23361618]
[1738117891023,0.599189,102020.0,102010.0,0.2487667]
[1738117891228,0.238389,102020.0,102010.0,0.2487667]
[1738117892026,0.599189,102020.0,102010.0,0.2487667]
[1738117892935,0.599189,102020.0,102010.0,0.23361618]
[1738117895937,0.238389,102020.0,102010.0,0.23361618]
[1738117896235,0.599189,102020.0,102010.0,0.23361618]
[1738117897935,0.599189,102020.0,102010.0,0.24876788]
[1738117900930,0.599189,102020.0,102010.0,0.23361618]
[1738117904862,0.60888386,102020.0,102010.0,0.23361618]
[1738117906164,0.599189,102020.0,102010.0,0.23361618]
[1738117906659,0.599189,102020.0,102010.0,0.20188577]
[1738117909061,0.599189,102020.0,102010.0,0.06458277]
[1738117909269,0.65977177,102020.0,102010.0,0.004]
[1738117909469,0.65977177,102020.0,102010.0,0.06458277]
[1738117909764,0.599189,102020.0,102010.0,0.06458277]
[1738117910959,0.599189,102020.0,102010.0,0.004]
[1738117911164,0.65977177,102020.0,102010.0,0.004]
[1738117911558,0.599189,102020.0,102010.0,0.06458277]
[1738117911960,0.72035454,102020.0,102010.0,0.004]
[1738117912161,0.137303,102010.0,102000.0,0.41018161]
[1738117912459,0.61048577,102010.0,102000.0,0.41018161]
[1738117912660,0.91048577,102010.0,102000.0,0.41018161]
[1738117912865,0.137316,102000.0,101990.0,0.04795347]
[1738117913066,0.67068154,102000.0,101990.0,0.04795347]
[1738117913364,0.549516,102000.0,101990.0,0.10853624]
[1738117913550,0.549516,102000.0,101990.0,0.24586624]
[1738117913857,0.137316,102000.0,101990.0,0.24586624]
[1738117914458,0.137316,102000.0,101990.0,0.49263123]
[1738117914665,0.137316,102000.0,101990.0,0.46380644]
[1738117914960,0.36094685,102010.0,101990.0,0.46380644]
[1738117915165,0.49824985,102010.0,102000.0,0.27975675]
[1738117915355,0.49824985,102010.0,102000.0,0.3720975]
[1738117915556,0.49824985,102010.0,102000.0,0.33195675]
[1738117916159,0.13744985,102010.0,102000.0,0.33195675]
[1738117916963,0.13744985,102010.0,102000.0,0.4242975]
[1738117917864,0.14044985,102010.0,102000.0,0.4242975]
[1738117918360,0.00314685,102010.0,102000.0,0.4242975]
[1738117918758,0.00014685,102010.0,102000.0,0.4242975]
[1738117919066,0.00114685,102010.0,102000.0,0.4302975]
[1738117919463,0.00114685,102010.0,102000.0,0.33795675]
[1738117919957,0.13844985,102010.0,102000.0,0.33795675]
[1738117925263,0.00114685,102010.0,102000.0,0.33795675]
[1738117925571,0.00114685,102010.0,102000.0,0.69875675]
[1738117926171,0.00114685,102010.0,102000.0,0.33795675]
[1738117926765,0.00114685,102010.0,102000.0,0.69875675]
[1738117927671,0.00114685,102010.0,102000.0,0.33795675]
[1738117931679,0.00114685,102010.0,102000.0,0.69875675]
[1738117931973,0.00114685,102010.0,102000.0,0.33795675]
[1738117933566,0.00114685,102010.0,102000.0,0.38995675]
[1738117938975,0.00114685,102010.0,102000.0,0.75075675]
[1738117940278,0.00114685,102010.0,102000.0,0.8430975]
[1738117940674,0.00114685,102010.0,102000.0,0.75075675]
[1738117943382,0.00114685,102010.0,102000.0,0.8430975]
[1738117943567,0.00114685,102010.0,102000.0,1.2038975]
[1738117949290,0.00114685,102010.0,102000.0,1.85382185]
[1738117949685,0.00114685,102010.0,102000.0,1.7614811]
[1738117950600,0.00114685,102010.0,102000.0,1.79031365]
[1738117953404,0.11875954,102010.0,102000.0,1.1403893]
[1738117957210,0.00114685,102010.0,102000.0,1.1403893]
[1738117961405,0.00114685,102010.0,102000.0,1.07980265]
[1738117962415,0.00114685,102010.0,102000.0,0.71900265]
[1738117963015,0.00114685,102010.0,102000.0,0.7795893]
[1738117964814,0.11875954,102010.0,102000.0,0.7795893]
[1738117968120,0.11875954,102010.0,102000.0,0.6753893]
[1738117968418,0.67744919,102010.0,102000.0,0.0561]
[1738117968610,0.67744919,102010.0,102000.0,0.006]
[1738117968811,0.66806254,102010.0,102000.0,0.06658665]
[1738117972924,0.87293845,102010.0,102000.0,0.06658665]
[1738117973224,0.9335251,102010.0,102000.0,0.006]
[1738117973417,0.9335251,102010.0,102000.0,0.06658665]
[1738117974022,0.87293845,102010.0,102000.0,0.06658665]
[1738117975823,0.87293845,102010.0,102000.0,0.006]
[1738117976415,0.69724264,102010.0,102000.0,0.006]
[1738117976619,0.70714336,102010.0,102000.0,0.006]
[1738117978327,0.76773001,102010.0,102000.0,0.006]
[1738117979530,0.82831666,102010.0,102000.0,0.006]
[1738117979923,0.76773001,102010.0,102000.0,0.006]
[1738117980520,0.82831666,102010.0,102000.0,0.006]
[1738117981033,0.76773001,102010.0,102000.0,0.006]
[1738117985027,0.71653001,102010.0,102000.0,0.006]
[1738117985231,0.31414566,102010.0,102000.0,0.11648665]
[1738117985431,0.31414566,102010.0,102000.0,0.3143893]
[1738117985634,0.17684266,102010.0,102000.0,0.3143893]
[1738117988439,0.17684266,102010.0,102000.0,0.25380265]
[1738117988736,0.17684266,102010.0,102000.0,0.29522418]
[1738117989139,0.31414566,102010.0,102000.0,0.20288771]
[1738117989330,0.59158632,102010.0,102000.0,0.0559]
[1738117989828,1.93158632,102010.0,102000.0,0.006]
[1738117990034,1.98448632,102010.0,102000.0,0.006]
[1738117990339,0.64448632,102010.0,102000.0,0.006]
[1738117991135,0.49924985,102010.0,102000.0,0.006]
[1738117991337,0.59158632,102010.0,102000.0,0.006]
[1738117992541,0.91402457,102010.0,102000.0,0.006]
[1738117993641,0.923851,102010.0,102000.0,0.006]
[1738117999152,0.923851,102010.0,102000.0,0.0556]
[1738117999352,0.77710856,102010.0,102000.0,0.0556]
[1738117999757,1.13790856,102010.0,102000.0,0.0556]
[1738118002058,1.03574566,102010.0,102000.0,0.0556]
[1738118004555,1.12808213,102010.0,102000.0,0.0556]
[1738118005955,1.12808213,102010.0,102000.0,0.006]
[1738118006161,1.17898213,102010.0,102000.0,0.006]
[1738118007958,1.00328632,102010.0,102000.0,0.006]
[1738118008263,1.09562279,102010.0,102000.0,0.006]
[1738118008561,1.00328632,102010.0,102000.0,0.006]
[1738118008759,1.09562279,102010.0,102000.0,0.006]
[1738118008952,1.00328632,102010.0,102000.0,0.006]
[1738118009358,1.09562279,102010.0,102000.0,0.006]
[1738118009670,1.00328632,102010.0,102000.0,0.006]
[1738118010456,0.95831979,102010.0,101980.0,0.04804685]
[1738118010661,0.95126647,101990.0,101980.0,0.04804685]
[1738118012158,0.95126647,101990.0,101980.0,0.04904685]
[1738118012159,0.95726647,101990.0,101980.0,0.04904685]
[1738118016368,1.10409623,101990.0,101980.0,0.04904685]
[1738118016558,1.11376972,101990.0,101980.0,0.04904685]
[1738118019773,1.02143325,101990.0,101980.0,0.04904685]
[1738118021673,1.11376972,101990.0,101980.0,0.04904685]
[1738118025364,1.02143325,101990.0,101980.0,0.04904685]
[1738118026974,1.11376972,101990.0,101980.0,0.04904685]
[1738118029574,1.28996543,101990.0,101980.0,0.04904685]
[1738118031477,1.28996543,101990.0,101980.0,0.00114685]
[1738118032564,1.34156543,101990.0,101980.0,0.00114685]
[1738118033473,1.19473567,101990.0,101980.0,0.00114685]
[1738118034671,1.22370378,101990.0,101980.0,0.00114685]
[1738118035275,1.16305149,101990.0,101980.0,0.00114685]
[1738118037182,0.98685578,101990.0,101980.0,0.00114685]
[1738118039081,2.32685578,101990.0,101980.0,0.00114685]
[1738118039471,0.98685578,101990.0,101980.0,0.00114685]
[1738118040874,0.93525578,101990.0,101980.0,0.00114685]
[1738118044480,1.11175244,101990.0,101980.0,0.00114685]
[1738118052891,0.39015244,101990.0,101980.0,0.00114685]
[1738118053083,0.75095244,101990.0,101980.0,0.00114685]
[1738118061796,0.57445578,101990.0,101980.0,0.00114685]
[1738118072407,0.93525578,101990.0,101980.0,0.00114685]
[1738118074908,1.14127609,101990.0,101980.0,0.00114685]
[1738118079203,1.25312838,101990.0,101980.0,0.00114685]
[1738118080310,2.59312838,101990.0,101980.0,0.00114685]
[1738118083813,2.58712838,101990.0,101980.0,0.00214685]
[1738118085524,2.81045067,101990.0,101960.0,0.1756563]
[1738118085807,0.13737,101960.0,101950.0,0.51267133]
[1738118086014,0.61947458,101960.0,101950.0,0.51267133]
[1738118086510,0.67247458,101960.0,101950.0,0.40997133]
[1738118087916,0.72227458,101960.0,101950.0,0.40997133]
[1738118089112,0.78292687,101960.0,101950.0,0.40997133]
[1738118089307,0.72227458,101960.0,101950.0,0.40997133]
[1738118090709,0.73226622,101960.0,101950.0,0.40997133]
[1738118090909,0.137383,101950.0,101940.0,0.04994685]
[1738118091111,0.55883529,101950.0,101940.0,0.04994685]
[1738118092409,0.56483529,101950.0,101940.0,0.04994685]
[1738118094410,0.62548758,101950.0,101940.0,0.04994685]
[1738118095413,0.77247329,101950.0,101940.0,0.04994685]
[1738118096119,0.711821,101950.0,101940.0,0.04994685]
[1738118097127,0.77247329,101950.0,101940.0,0.04994685]
[1738118097822,0.711821,101950.0,101940.0,0.04994685]
[1738118099519,0.88964301,101950.0,101940.0,0.04994685]
[1738118101324,0.88964301,101950.0,101940.0,0.00014685]
[1738118101520,0.94214301,101950.0,101940.0,0.00014685]
[1738118102718,2.36398301,101950.0,101940.0,0.00014685]
[1738118103224,2.2169973,101950.0,101940.0,0.00014685]
[1738118103526,0.13741,101930.0,101920.0,0.0538]
[1738118103731,0.61951458,101930.0,101920.0,0.0538]
[1738118104029,0.98031458,101930.0,101920.0,0.0538]
[1738118105926,2.32031458,101930.0,101920.0,0.0538]
[1738118107829,0.137424,101920.0,101910.0,0.10604685]
[1738118108125,0.61952858,101920.0,101910.0,0.15784685]
[1738118108320,0.61952858,101920.0,101910.0,0.05194685]
[1738118108321,0.68018087,101920.0,101910.0,0.05194685]
[1738118108629,0.73088087,101920.0,101910.0,0.05194685]
[1738118108929,0.67022858,101920.0,101910.0,0.05194685]
[1738118109133,0.67622858,101920.0,101910.0,0.05194685]
[1738118111125,1.03702858,101920.0,101910.0,0.05194685]
[1738118113822,0.98632858,101920.0,101910.0,0.05194685]
[1738118114025,0.98632858,101920.0,101910.0,0.14994685]
[1738118117224,1.1034983,101920.0,101910.0,0.14994685]
[1738118125744,0.3818983,101920.0,101910.0,0.14994685]
[1738118125936,1.1034983,101920.0,101910.0,0.14994685]
[1738118126246,1.04284601,101920.0,101910.0,0.14994685]
[1738118128142,0.90542201,101920.0,101910.0,0.14994685]
[1738118128948,0.54462201,101920.0,101910.0,0.14994685]
[1738118129452,0.54462201,101920.0,101910.0,0.28738385]
[1738118129750,0.54462201,101920.0,101910.0,0.34803614]
[1738118129939,0.12316972,101920.0,101910.0,0.70883614]
[1738118130451,0.14698571,101930.0,101920.0,0.137424]
[1738118130652,0.14698571,101930.0,101920.0,0.61952858]
[1738118130851,0.06778571,101930.0,101920.0,0.61952858]
[1738118132247,0.18533349,101930.0,101920.0,0.61952858]
[1738118132650,0.18533349,101930.0,101920.0,0.59068634]
[1738118134653,0.19033349,101930.0,101920.0,0.59168634]
[1738118137155,0.005,101930.0,101920.0,1.00165767]
[1738118139463,0.005,101930.0,101920.0,0.90919533]
[1738118139770,0.005,101930.0,101920.0,1.00165767]
[1738118140373,0.005,101930.0,101920.0,0.76734264]
[1738118140767,0.005,101930.0,101920.0,0.6748803]
[1738118144577,0.005,101930.0,101920.0,0.499224]
[1738118145477,0.005,101930.0,101920.0,0.59168634]
[1738118151284,0.005,101930.0,101920.0,0.499224]
[1738118154185,0.005,101930.0,101920.0,0.59168634]
[1738118154379,0.00014685,101940.0,101930.0,0.13741]
[1738118154581,0.00014685,101940.0,101930.0,0.70727448]
[1738118157078,0.00014685,101940.0,101930.0,0.65817448]
[1738118157491,0.00014685,101940.0,101930.0,0.65917448]
[1738118158584,0.00014685,101940.0,101930.0,0.69096672]
[1738118159689,0.00014685,101940.0,101930.0,1.10093805]
[1738118161591,0.00014685,101940.0,101930.0,1.11060806]
[1738118162786,0.00014685,101940.0,101930.0,1.16140806]
[1738118163486,0.00014685,101940.0,101930.0,1.65585547]
[1738118168487,0.00014685,101940.0,101930.0,1.42154044]
[1738118174896,0.00014685,101940.0,101930.0,1.65637284]
[1738118175285,0.00014685,101940.0,101930.0,1.29557284]
[1738118175487,0.00014685,101940.0,101930.0,1.65637284]
[1738118178597,0.00014685,101940.0,101930.0,1.62458597]
[1738118180702,0.00014685,101940.0,101930.0,1.57378597]
[1738118182705,0.05064685,101940.0,101930.0,1.57378597]
[1738118183503,0.05064685,101940.0,101930.0,1.21298597]
[1738118184096,0.67018355,101940.0,101930.0,0.90593611]
[1738118184800,0.6095137,101940.0,101930.0,0.90593611]
[1738118185202,0.6095137,101940.0,101930.0,0.52879628]
[1738118189410,0.75660174,101940.0,101930.0,0.001]
[1738118189811,0.69593189,101940.0,101930.0,0.06166985]
[1738118190110,0.75660174,101940.0,101930.0,0.001]
[1738118192603,0.39580174,101940.0,101930.0,0.001]
[1738118193011,0.75660174,101940.0,101930.0,0.001]
[1738118193507,0.8742045,101940.0,101930.0,0.001]
[1738118197607,0.88390452,101940.0,101930.0,0.001]
[1738118197909,0.73681648,101940.0,101930.0,0.001]
[1738118198505,0.79748633,101940.0,101930.0,0.001]
[1738118198708,0.73681648,101940.0,101930.0,0.001]
[1738118199412,0.79748633,101940.0,101930.0,0.001]
[1738118200617,0.94457437,101940.0,101930.0,0.001]
[1738118204307,1.30537437,101940.0,101930.0,0.001]
[1738118205610,1.24470452,101940.0,101930.0,0.001]
[1738118213720,1.30348462,101940.0,101930.0,0.001]
[1738118215615,1.2937846,101940.0,101930.0,0.001]
[1738118216122,1.2937846,101940.0,101930.0,0.13841]
[1738118216317,1.2937846,101940.0,101930.0,0.19907985]
[1738118216318,1.23311475,101940.0,101930.0,0.19907985]
[1738118216516,1.23311475,101940.0,101930.0,0.13841]
[1738118217128,1.2937846,101940.0,101930.0,0.13841]
[1738118218519,1.2937846,101940.0,101930.0,0.001]
[1738118218721,1.35445445,101940.0,101930.0,0.001]
[1738118220726,0.13741,101930.0,101920.0,0.41109281]
[1738118221027,0.7149497,101930.0,101920.0,0.41109281]
[1738118221627,2.0549497,101930.0,101920.0,0.41109281]
[1738118222130,2.0599497,101930.0,101920.0,0.41209281]
[1738118224534,2.1415497,101930.0,101920.0,0.41209281]
[1738118225538,2.31793256,101930.0,101920.0,0.001]
[1738118226433,0.97793256,101930.0,101920.0,0.001]
[1738118226936,0.137424,101920.0,101910.0,0.00014685]
[1738118227242,0.6665637,101920.0,101910.0,0.00014685]
[1738118228833,0.81352074,101920.0,101910.0,0.00014685]
[1738118229035,0.81552074,101920.0,101910.0,0.00014685]
[1738118229540,0.81352074,101920.0,101910.0,0.00014685]
[1738118229731,0.81852074,101920.0,101910.0,0.00114685]
[1738118235445,0.6715637,101920.0,101910.0,0.00114685]
[1738118238849,1.0323637,101920.0,101910.0,0.00114685]
[1738118239154,1.17932074,101920.0,101910.0,0.00114685]
[1738118251657,1.20874656,101920.0,101910.0,0.00114685]
[1738118253661,0.48714656,101920.0,101910.0,0.00114685]
[1738118253853,1.20874656,101920.0,101910.0,0.00114685]
[1738118261063,0.137437,101910.0,101900.0,0.51109281]
[1738118261257,2.0246767,101910.0,101900.0,0.51109281]
[1738118262466,0.137451,101900.0,101890.0,0.07132547]
[1738118262765,0.79282055,101900.0,101890.0,0.03769865]
[1738118264659,0.7331507,101900.0,101890.0,0.03769865]
[1738118265370,0.74298205,101900.0,101890.0,0.03769865]
[1738118266168,0.137481,101880.0,101860.0,0.2697754]
[1738118266466,0.55895085,101880.0,101860.0,0.2697754]
[1738118266667,0.5590977,101880.0,101860.0,0.2697754]
[1738118267672,0.5610977,101880.0,101860.0,0.2697754]
[1738118268766,0.2002977,101880.0,101860.0,0.2697754]
[1738118268970,0.5610977,101880.0,101860.0,0.2697754]
[1738118269672,0.76664799,101880.0,101860.0,0.2697754]
[1738118270567,0.62916699,101880.0,101860.0,0.2697754]
[1738118270773,0.137491,101870.0,101860.0,0.2697754]
[1738118271165,0.137491,101870.0,101860.0,0.33044525]
[1738118273373,0.139491,101870.0,101860.0,0.33044525]
[1738118273976,0.002,101870.0,101860.0,0.69124525]
[1738118276167,0.002,101870.0,101860.0,0.7519151]
[1738118276568,0.002,101870.0,101860.0,0.69124525]
[1738118282077,0.002,101870.0,101860.0,0.33044525]
[1738118282283,0.002,101870.0,101860.0,0.69124525]
[1738118284681,0.002,101870.0,101860.0,0.33044525]
[1738118284878,0.002,101870.0,101860.0,0.69124525]
[1738118288281,0.002,101870.0,101860.0,0.6305754]
[1738118288476,0.002,101870.0,101860.0,0.69124525]
[1738118291680,0.002,101870.0,101860.0,0.33044525]
[1738118291875,0.002,101870.0,101860.0,0.69124525]
[1738118294286,0.002,101870.0,101860.0,0.33044525]
[1738118294490,0.002,101870.0,101860.0,0.69124525]
[1738118294882,0.002,101870.0,101860.0,0.33044525]
[1738118295082,0.002,101870.0,101860.0,0.69124525]
[1738118296289,0.002,101870.0,101860.0,1.35250957]
[1738118304801,0.002,101870.0,101860.0,1.8511149]
[1738118312108,0.002,101870.0,101860.0,1.4903149]
[1738118312409,0.002,101870.0,101860.0,1.8511149]
[1738118317506,0.09009298,101870.0,101860.0,1.70611674]
[1738118320411,0.09009298,101870.0,101860.0,1.34531674]
[1738118320612,0.09009298,101870.0,101860.0,1.70611674]
[1738118321318,0.09009298,101870.0,101860.0,1.35381902]
[1738118323315,0.14770416,101880.0,101870.0,0.137491]
[1738118323510,0.14770416,101880.0,101870.0,0.6196307]
[1738118323911,0.14770416,101880.0,101870.0,0.2588307]
[1738118324207,0.34585201,101880.0,101870.0,0.3608]
[1738118324512,0.137491,101870.0,101860.0,0.87184817]
[1738118324704,0.201291,101870.0,101860.0,0.93251802]
[1738118324910,0.201291,101870.0,101860.0,1.28481574]
[1738118327725,0.203291,101870.0,101860.0,1.28481574]
[1738118328818,0.32074831,101870.0,101860.0,1.16789511]
[1738118332927,0.32074831,101870.0,101860.0,0.79959467]
[1738118334237,0.68154831,101870.0,101860.0,0.79959467]
[1738118336929,0.68154831,101870.0,101860.0,0.50532134]
[1738118337725,0.68154831,101870.0,101860.0,0.50548811]
[1738118339034,0.48025731,101870.0,101860.0,0.50548811]
[1738118339237,0.11945731,101870.0,101860.0,0.53808811]
[1738118340638,0.11945731,101870.0,101860.0,0.56918811]
[1738118342936,0.11945731,101870.0,101860.0,0.92998811]
[1738118344037,0.11945731,101870.0,101860.0,0.92851593]
[1738118344625,0.002,101870.0,101860.0,1.59632266]
[1738118350242,0.2644258,101880.0,101860.0,1.51948951]
[1738118350535,0.2644258,101880.0,101870.0,0.6196307]
[1738118351841,0.2694258,101880.0,101870.0,0.6196307]
[1738118354835,0.12260416,101880.0,101870.0,0.85500779]
[1738118358647,0.00514685,101880.0,101870.0,1.52479798]
[1738118360753,0.00514685,101880.0,101870.0,1.16399798]
[1738118361252,0.00514685,101880.0,101870.0,1.52479798]
[1738118367846,1e-08,101880.0,101870.0,1.52479798]
[1738118368050,1e-08,101880.0,101870.0,1.55709798]
[1738118369143,1e-08,101880.0,101870.0,1.91789798]
[1738118372749,1e-08,101880.0,101870.0,1.99917798]
[1738118372944,0.11760416,101890.0,101870.0,1.92235683]
[1738118373147,0.11760416,101890.0,101880.0,0.74338755]
[1738118373347,0.00014685,101890.0,101880.0,0.74338755]
[1738118374356,0.00014685,101890.0,101880.0,0.74538755]
[1738118376851,0.00014685,101890.0,101880.0,1.41517774]
[1738118378950,0.00014685,101890.0,101880.0,1.42497427]
[1738118379951,0.29607895,101910.0,101900.0,0.2587907]
[1738118380152,0.29607895,101910.0,101900.0,0.6195907]
[1738118380761,0.0318,101910.0,101900.0,0.6195907]
[1738118381457,0.0328,101910.0,101900.0,0.6897907]
[1738118384466,0.0328,101910.0,101900.0,0.2637907]
[1738118385166,0.0328,101910.0,101900.0,0.6245907]
[1738118385366,0.0328,101910.0,101900.0,0.2637907]
[1738118385560,0.0328,101910.0,101900.0,0.6245907]
[1738118385761,0.0328,101910.0,101900.0,1.03514885]
[1738118388468,0.0328,101910.0,101900.0,1.04493485]
[1738118389461,0.0328,101910.0,101900.0,0.81033019]
[1738118398968,0.0328,101910.0,101900.0,0.82560964]
[1738118399168,0.0328,101910.0,101900.0,1.0602143]
[1738118399672,0.0328,101910.0,101900.0,1.04493485]
[1738118400370,0.0328,101910.0,101900.0,1.06024947]
[1738118401669,0.0328,101910.0,101900.0,0.69945907]
[1738118401874,0.0328,101910.0,101900.0,1.06025907]
[1738118402474,0.0328,101910.0,101900.0,0.69945907]
[1738118402668,0.0328,101910.0,101900.0,1.06025907]
[1738118403170,0.0328,101910.0,101900.0,1.09285907]
[1738118407177,0.0328,101910.0,101900.0,1.2101614]
[1738118410397,0.0328,101910.0,101900.0,1.3515242]
[1738118410611,0.0328,101910.0,101900.0,0.9907242]
[1738118410899,0.531037,101910.0,101900.0,0.89745435]
[1738118412198,0.531037,101910.0,101900.0,0.89747592]
[1738118412503,0.531037,101910.0,101900.0,0.95814577]
[1738118413197,0.531037,101910.0,101900.0,0.89747592]
[1738118413502,0.64849431,101910.0,101900.0,0.22825264]
[1738118413704,0.64849431,101910.0,101900.0,0.28892249]
[1738118414299,0.64849431,101910.0,101900.0,0.2735767]
[1738118417006,0.64849431,101910.0,101900.0,0.68517024]
[1738118419001,0.64849431,101910.0,101900.0,0.62450039]
[1738118419811,0.64849431,101910.0,101900.0,0.68517024]
[1738118420209,0.28769431,101910.0,101900.0,0.62450039]
[1738118420509,0.28769431,101910.0,101900.0,0.68517024]
[1738118420709,0.64849431,101910.0,101900.0,0.68517024]
[1738118421296,0.28769431,101910.0,101900.0,0.68517024]
[1738118421501,0.64849431,101910.0,101900.0,0.68517024]
[1738118426109,0.28769431,101910.0,101900.0,0.68517024]
[1738118426813,0.65842767,101910.0,101900.0,0.68517024]
[1738118427108,0.65842767,101910.0,101900.0,0.62450039]
[1738118427705,0.65842767,101910.0,101900.0,0.38930408]
[1738118431917,0.65842767,101910.0,101900.0,0.44997393]
[1738118432113,0.29762767,101910.0,101900.0,0.44997393]
[1738118432918,0.28769431,101910.0,101900.0,0.44997393]
[1738118435112,0.64849431,101910.0,101900.0,0.44997393]
[1738118435415,0.64849431,101910.0,101900.0,0.68517024]
[1738118436807,0.64849431,101910.0,101900.0,0.62450039]
[1738118439611,0.64849431,101910.0,101900.0,0.48704939]
[1738118441515,0.67785864,101910.0,101900.0,0.25185308]
[1738118443127,0.67785864,101910.0,101900.0,0.24206708]
[1738118443527,0.73852849,101910.0,101900.0,0.18139723]
[1738118443727,0.67785864,101910.0,101900.0,0.24206708]
[1738118445726,0.85404461,101910.0,101900.0,0.06566985]
[1738118448521,0.85404461,101910.0,101900.0,0.21846395]
[1738118448721,0.85404461,101910.0,101900.0,0.25126395]
[1738118449425,0.49324461,101910.0,101900.0,0.25126395]
[1738118449612,0.31705864,101910.0,101900.0,0.25126395]
[1738118449819,0.67785864,101910.0,101900.0,0.25126395]
[1738118451217,0.67785864,101910.0,101900.0,0.3119338]
[1738118451727,0.31705864,101910.0,101900.0,0.3119338]
[1738118454230,0.43480412,101910.0,101900.0,0.72352734]
[1738118454627,0.26556712,101910.0,101900.0,0.72352734]
[1738118454822,0.26556712,101910.0,101900.0,1.08432734]
[1738118456733,0.26556712,101910.0,101900.0,1.08432868]
[1738118459332,0.001,101910.0,101900.0,1.57819772]
[1738118459633,0.001,101910.0,101900.0,1.21739772]
[1738118460223,0.001,101910.0,101900.0,1.56285328]
[1738118460423,0.001,101910.0,101900.0,1.5781979]
[1738118461835,0.001,101910.0,101900.0,1.5781983]
[1738118462027,0.001,101910.0,101900.0,1.56285328]
[1738118462632,0.001,101910.0,101900.0,1.57819776]
[1738118466438,0.001,101910.0,101900.0,1.57819769]
[1738118467129,0.001,101910.0,101900.0,1.63886754]
[1738118467730,0.001,101910.0,101900.0,1.26185709]
[1738118468241,0.001,101910.0,101900.0,1.20118724]
[1738118469441,0.001,101910.0,101900.0,1.26185709]
[1738118474244,0.001,101910.0,101900.0,1.40104965]
[1738118474547,0.00014685,101920.0,101900.0,1.26359865]
[1738118474742,0.00014685,101920.0,101910.0,0.6520767]
[1738118475047,0.00014685,101920.0,101910.0,0.60675126]
[1738118475649,0.00014685,101920.0,101910.0,0.24595126]
[1738118476346,0.00014685,101920.0,101910.0,0.24589002]
[1738118477244,0.00014685,101920.0,101910.0,0.24789002]
[1738118478242,0.00014685,101920.0,101910.0,0.24589002]
[1738118478441,0.00114685,101920.0,101910.0,0.25090991]
[1738118478743,0.00114685,101920.0,101910.0,0.26052542]
[1738118479149,0.00114685,101920.0,101910.0,0.26051841]
[1738118481749,0.00114685,101920.0,101910.0,0.67152838]
[1738118484952,0.13857085,101920.0,101910.0,0.63902838]
[1738118485259,0.20197085,101920.0,101910.0,0.46288125]
[1738118485746,0.20197085,101920.0,101910.0,0.4475852]
[1738118487753,0.31971633,101920.0,101910.0,0.4475852]
[1738118491754,0.38038618,101920.0,101910.0,0.24947835]
[1738118491954,0.74118618,101920.0,101910.0,0.41626339]
[1738118492860,0.68051633,101920.0,101910.0,0.47693324]
[1738118493160,0.74118618,101920.0,101910.0,0.41626339]
[1738118496163,0.94644831,101920.0,101910.0,0.18140055]
[1738118496862,0.95643113,101920.0,101910.0,0.18140055]
[1738118498766,0.95643113,101920.0,101910.0,0.2420704]
[1738118499157,0.89576128,101920.0,101910.0,0.2420704]
[1738118499766,0.78024516,101920.0,101910.0,0.06566985]
[1738118500458,0.84091501,101920.0,101910.0,0.005]
[1738118503366,0.87027934,101920.0,101910.0,0.005]
[1738118511666,1.23107934,101920.0,101910.0,0.005]
[1738118517570,1.37802837,101920.0,101910.0,0.005]
[1738118520781,1.23107934,101920.0,101910.0,0.005]
[1738118523081,1.17040949,101920.0,101910.0,0.005]
[1738118526986,1.10700949,101920.0,101910.0,0.0383]
[1738118527186,1.10700949,101920.0,101910.0,0.05359536]
[1738118527684,1.10700949,101920.0,101910.0,0.0383]
[1738118527881,1.10700949,101920.0,101910.0,0.05359534]
[1738118529083,0.93082352,101920.0,101910.0,0.05359534]
[1738118531092,0.93082352,101920.0,101910.0,0.0383]
[1738118534396,1.13684383,101920.0,101910.0,0.0383]
[1738118535189,0.77604383,101920.0,101910.0,0.0383]
[1738118535789,0.41524383,101920.0,101910.0,0.0383]
[1738118536089,0.77604383,101920.0,101910.0,0.0383]
[1738118548585,0.76518968,101920.0,101900.0,0.0301]
[1738118548790,0.59210685,101910.0,101900.0,0.0301]
[1738118549097,0.137451,101900.0,101890.0,0.44341024]
[1738118549297,0.55892085,101900.0,101890.0,0.44341024]
[1738118550799,0.55892085,101900.0,101890.0,0.44541024]
[1738118555290,0.56865232,101900.0,101890.0,0.44541024]
[1738118556098,0.71585127,101900.0,101890.0,0.2105474]